fUSD/lending_fUSD_20240613
["ID","MTS","AMOUNT","RATE_DAILY","PERIOD"]
[329396774,1718317987417,-500.0,0.00025479,3]
[329396775,1718317987430,-500.0,0.00025479,3]
[329396776,1718317987461,-525.0,0.00025479,3]
[329396777,1718317987488,-500.0,0.00025479,3]
[329396778,1718317987500,-539.85,0.00025479,3]
[329396779,1718317987520,-500.0,0.00025479,3]
[329396780,1718317987535,-500.0,0.00025479,3]
[329396781,1718317987557,-500.0,0.00025479,3]
[329396782,1718317987569,-500.0,0.00025479,3]
[329396783,1718317987579,-500.0,0.00025479,3]
[329396784,1718317987592,-500.0,0.00025479,3]
[329396785,1718317987602,-500.0,0.00025479,3]
[329396786,1718317987614,-500.0,0.00025479,3]
[329396787,1718317987625,-259.54943913,0.00025479,3]
[329396788,1718317987639,-500.0,0.00025479,3]
[329396789,1718317987655,-500.0,0.00025479,3]
[329396790,1718317987673,-500.0,0.00025479,3]
[329396791,1718317987699,-500.0,0.00025479,3]
[329396792,1718317987733,-500.0,0.00025479,3]
[329396793,1718317987752,-500.0,0.00025479,3]
[329396794,1718317987774,-500.0,0.00025479,3]
[329396795,1718317987801,-527.38598163,0.00025479,3]
[329396796,1718317987812,-622.26,0.00025479,3]
[329396797,1718317987844,-500.0,0.00025479,3]
[329396798,1718317987858,-500.0,0.00025479,3]
[329396799,1718317987873,-500.0,0.00025479,3]
[329396800,1718317987889,-500.0,0.00025479,3]
[329396801,1718317987900,-500.0,0.00025479,3]
[329396802,1718317987934,-500.0,0.00025479,3]
[329396803,1718317987958,-500.0,0.00025479,3]
[329396804,1718317987968,-500.0,0.00025479,3]
[329396805,1718317987983,-643.86495866,0.00025479,3]
[329396806,1718317987995,-500.0,0.00025479,3]
[329396807,1718317988012,-802.63,0.00025479,3]
[329396808,1718317988024,-538.0,0.00025479,3]
[329396809,1718317988041,-500.0,0.00025479,3]
[329396810,1718317988054,-500.0,0.00025479,3]
[329396811,1718317988072,-599.72,0.00025479,3]
[329396812,1718317988102,-500.0,0.00025479,3]
[329396813,1718317988124,-500.0,0.00025479,3]
[329396814,1718317988139,-500.0,0.00025479,3]
[329396815,1718317988150,-906.66,0.00025479,3]
[329396816,1718317988161,-500.0,0.00025479,3]
[329396817,1718317988174,-500.0,0.00025479,3]
[329396818,1718317988184,-537.05448062,0.00025479,3]
[329396819,1718317988211,-500.0,0.00025479,3]
[329396820,1718317988234,-500.0,0.00025479,3]
[329396821,1718317988260,-500.0,0.00025479,3]
[329396822,1718317988285,-500.0,0.00025479,3]
[329396823,1718317988303,-500.0,0.00025479,3]
[329396824,1718317988320,-500.0,0.00025479,3]
[329396825,1718317988332,-500.0,0.00025479,3]
[329396826,1718317988342,-500.0,0.00025479,3]
[329396827,1718317988354,-500.0,0.00025479,3]
[329396828,1718317988366,-500.0,0.00025479,3]
[329396829,1718317988377,-500.0,0.00025479,3]
[329396830,1718317988388,-500.0,0.00025479,3]
[329396831,1718317988400,-500.0,0.00025479,3]
[329396832,1718317988427,-831.93,0.00025479,3]
[329396833,1718317988445,-574.51,0.00025479,3]
[329396834,1718317988458,-400.38284439,0.00025479,3]
[329396835,1718317988473,-500.0,0.00025479,3]
[329396836,1718317988489,-500.0,0.00025479,3]
[329396837,1718317988516,-500.0,0.00025479,3]
[329396838,1718317988527,-229.20955721,0.00025479,3]
[329396839,1718317988551,-500.0,0.00025479,3]
[329396840,1718317988563,-500.0,0.00025479,3]
[329396841,1718317988582,-1196.11,0.00025479,3]
[329396842,1718317988604,-500.0,0.00025479,3]
[329396843,1718317988622,-500.0,0.00025479,3]
[329396844,1718317988663,-672.98,0.00025479,3]
[329396845,1718317988692,-500.0,0.00025479,3]
[329396846,1718317988712,-552.8734342,0.00025479,3]
[329396847,1718317988724,-500.0,0.00025479,3]
[329396848,1718317988768,-500.0,0.00025479,3]
[329396849,1718317988794,-500.0,0.00025479,3]
[329396850,1718317988808,-500.0,0.00025479,3]
[329396851,1718317988833,-500.0,0.00025479,3]
[329396852,1718317988845,-500.0,0.00025479,3]
[329396853,1718317988857,-500.0,0.00025479,3]
[329396854,1718317988867,-500.0,0.00025479,3]
[329396855,1718317988879,-545.58,0.00025479,3]
[329396856,1718317988890,-500.0,0.00025479,3]
[329396857,1718317988903,-500.0,0.00025479,3]
[329396858,1718317988914,-808.87,0.00025479,3]
[329396859,1718317988931,-500.0,0.00025479,3]
[329396860,1718317988950,-500.0,0.00025479,3]
[329396861,1718317988965,-500.0,0.00025479,3]
[329396862,1718317989001,-571.92684472,0.00025479,3]
[329396863,1718317989045,-500.0,0.00025479,3]
[329396864,1718317989080,-557.39,0.00025479,3]
[329396865,1718317989094,-500.0,0.00025479,3]
[329396866,1718317989114,-500.0,0.00025479,3]
[329396867,1718317989125,-500.0,0.00025479,3]
[329396868,1718317989140,-500.0,0.00025479,3]
[329396869,1718317989152,-500.0,0.00025479,3]
[329396870,1718317989169,-500.0,0.00025479,3]
[329396871,1718317989181,-480.2555326,0.00025479,3]
[329396872,1718317989194,-500.0,0.00025479,3]
[329396873,1718317989217,-500.0,0.00025479,3]
[329396874,1718317989234,-500.0,0.00025479,3]
[329396875,1718317989254,-500.0,0.00025479,3]
[329396876,1718317989276,-520.44,0.00025479,3]
[329396877,1718317989292,-500.0,0.00025479,3]
[329396878,1718317989316,-500.0,0.00025479,3]
[329396879,1718317989331,-500.0,0.00025479,3]
[329396880,1718317989346,-500.0,0.00025479,3]
[329396881,1718317989369,-519.92113322,0.00025479,3]
[329396882,1718317989389,-505.04,0.00025479,3]
[329396883,1718317989400,-500.0,0.00025479,3]
[329396884,1718317989424,-603.25,0.00025479,3]
[329396885,1718317989436,-500.0,0.00025479,3]
[329396886,1718317989448,-500.0,0.00025479,3]
[329396887,1718317989461,-500.0,0.00025479,3]
[329396888,1718317989488,-219.13,0.00025479,3]
[329396889,1718317989500,-500.0,0.00025479,3]
[329396890,1718317989512,-500.0,0.00025479,3]
[329396891,1718317989537,-500.0,0.00025479,3]
[329396892,1718317989549,-656.5,0.00025479,3]
[329396893,1718317989575,-827.84,0.00025479,3]
[329396894,1718317989614,-585.96,0.00025479,3]
[329396895,1718317989656,-611.02,0.00025479,3]
[329396896,1718317989688,-500.0,0.00025479,3]
[329396897,1718317989727,-500.0,0.00025479,3]
[329396898,1718317989764,-1241.67,0.00025479,3]
[329396899,1718317989813,-500.0,0.00025479,3]
[329396900,1718317989835,-2598.67,0.00025479,3]
[329396901,1718317989869,-546.28,0.00025479,3]
[329396902,1718317989897,-587.93190534,0.00025479,3]
[329396903,1718317989910,-500.0,0.00025479,3]
[329396904,1718317989923,-500.0,0.00025479,3]
[329396905,1718317989937,-500.0,0.00025479,3]
[329396906,1718317989953,-749.23,0.00025479,3]
[329396907,1718317989965,-500.0,0.00025479,3]
[329396908,1718317989996,-847.6,0.00025479,3]
[329396909,1718317990010,-586.22,0.00025479,3]
[329396910,1718317990021,-500.0,0.00025479,3]
[329396911,1718317990043,-897.66,0.00025479,3]
[329396912,1718317990055,-500.0,0.00025479,3]
[329396913,1718317990067,-500.0,0.00025479,3]
[329396914,1718317990081,-500.0,0.00025479,3]
[329396915,1718317990103,-1445.58,0.00025479,3]
[329396916,1718317990123,-500.0,0.00025479,3]
[329396917,1718317990162,-949.41,0.00025479,3]
[329396918,1718317990174,-500.0,0.00025479,3]
[329396919,1718317990192,-522.30689437,0.00025479,3]
[329396920,1718317990239,-500.0,0.00025479,3]
[329396921,1718317990289,-559.04,0.00025479,3]
[329396922,1718317990313,-6650.12,0.00025479,3]
[329396923,1718317990337,-500.0,0.00025479,3]
[329396924,1718317990365,-500.0,0.00025479,3]
[329396925,1718317990379,-500.0,0.00025479,3]
[329396926,1718317990401,-500.0,0.00025479,3]
[329396927,1718317990419,-12130.87,0.00025479,3]
[329396928,1718317990439,-1848.94,0.00025479,3]
[329396929,1718317990481,-2355.91,0.00025479,3]
[329396930,1718317990492,-500.0,0.00025479,3]
[329396931,1718317990523,-1528.99,0.00025479,3]
[329396932,1718317990557,-500.0,0.00025479,3]
[329396933,1718317990583,-3587.22,0.00025479,3]
[329396934,1718317990602,-500.0,0.00025479,3]
[329396935,1718317990619,-522.04869319,0.00025479,3]
[329396936,1718317990642,-500.0,0.00025479,3]
[329396937,1718317990653,-850.34,0.00025479,3]
[329396938,1718317990668,-500.0,0.00025479,3]
[329396939,1718317990684,-500.0,0.00025479,3]
[329396940,1718317990709,-1008.9,0.00025479,3]
[329396941,1718317990735,-2339.95,0.00025479,3]
[329396942,1718317990745,-835.73,0.00025479,3]
[329396943,1718317990769,-500.0,0.00025479,3]
[329396944,1718317990780,-500.0,0.00025479,3]
[329396945,1718317990794,-500.0,0.00025479,3]
[329396946,1718317990818,-8253.71,0.00025479,3]
[329396947,1718317990837,-500.0,0.00025479,3]
[329396948,1718317990848,-2231.51,0.00025479,3]
[329396949,1718317990859,-500.0,0.00025479,3]
[329396950,1718317990891,-500.0,0.00025479,3]
[329396951,1718317990903,-1261.14,0.00025479,3]
[329396952,1718317990919,-500.0,0.00025479,3]
[329396953,1718317990931,-2581.37,0.00025479,3]
[329396954,1718317990968,-500.0,0.00025479,3]
[329396955,1718317990980,-500.0,0.00025479,3]
[329396956,1718317990991,-500.0,0.00025479,3]
[329396957,1718317991009,-500.0,0.00025479,3]
[329396958,1718317991022,-500.0,0.00025479,3]
[329396959,1718317991037,-500.0,0.00025479,3]
[329396960,1718317991049,-595.23,0.00025479,3]
[329396961,1718317991080,-511.93062478,0.00025479,3]
[329396962,1718317991095,-3093.67,0.00025479,3]
[329396963,1718317991117,-1681.53,0.00025479,3]
[329396964,1718317991129,-500.0,0.00025479,3]
[329396965,1718317991142,-500.0,0.00025479,3]
[329396966,1718317991155,-500.0,0.00025479,3]
[329396967,1718317991173,-6489.64,0.00025479,3]
[329396968,1718317991186,-2008.4,0.00025479,3]
[329396969,1718317991203,-500.0,0.00025479,3]
[329396970,1718317991216,-500.0,0.00025479,3]
[329396971,1718317991233,-500.0,0.00025479,3]
[329396972,1718317991261,-9362.18,0.00025479,3]
[329396973,1718317991283,-1686.82,0.00025479,3]
[329396974,1718317991296,-500.0,0.00025479,3]
[329396975,1718317991310,-500.0,0.00025479,3]
[329396976,1718317991326,-500.0,0.00025479,3]
[329396977,1718317991372,-500.0,0.00025479,3]
[329396978,1718317991386,-500.0,0.00025479,3]
[329396979,1718317991414,-500.0,0.00025479,3]
[329396980,1718317991432,-511.38722636,0.00025479,3]
[329396981,1718317991446,-500.0,0.00025479,3]
[329396982,1718317991488,-1664.82,0.00025479,3]
[329396983,1718317991501,-500.0,0.00025479,3]
[329396984,1718317991521,-469.09579772,0.00025479,3]
[329396985,1718317991533,-556.12,0.00025479,3]
[329396986,1718317991546,-500.0,0.00025479,3]
[329396987,1718317991559,-518.76582695,0.00025479,3]
[329396988,1718317991584,-9104.14,0.00025479,3]
[329396989,1718317991595,-500.0,0.00025479,3]
[329396990,1718317991615,-725.13,0.00025479,3]
[329396991,1718317991627,-500.0,0.00025479,3]
[329396992,1718317991640,-500.0,0.00025479,3]
[329396993,1718317991670,-2019.62,0.00025479,3]
[329396994,1718317991698,-500.0,0.00025479,3]
[329396995,1718317991734,-1700.01,0.00025479,3]
[329396996,1718317991756,-500.0,0.00025479,3]
[329396997,1718317991785,-243.79481303,0.00025479,3]
[329396998,1718317991802,-5899.8,0.00025479,3]
[329396999,1718317991826,-500.0,0.00025479,3]
[329397000,1718317991839,-500.0,0.00025479,3]
[329397001,1718317991870,-500.0,0.00025479,3]
[329397002,1718317991899,-1013.53,0.00025479,3]
[329397003,1718317991930,-1132.04,0.00025479,3]
[329397004,1718317991943,-500.0,0.00025479,3]
[329397005,1718317991958,-1030.81,0.00025479,3]
[329397006,1718317991982,-500.0,0.00025479,3]
[329397007,1718317992013,-1291.2,0.00025479,3]
[329397008,1718317992027,-501.26,0.00025479,3]
[329397009,1718317992044,-500.0,0.00025479,3]
[329397010,1718317992064,-500.0,0.00025479,3]
[329397011,1718317992091,-500.0,0.00025479,3]
[329397012,1718317992112,-1624.02,0.00025479,3]
[329397013,1718317992131,-19599.65,0.00025479,3]
[329397014,1718317992178,-1893.88,0.00025479,3]
[329397015,1718317992198,-500.0,0.00025479,3]
[329397016,1718317992219,-500.0,0.00025479,3]
[329397017,1718317992238,-500.0,0.00025479,3]
[329397018,1718317992264,-3814.39,0.00025479,3]
[329397019,1718317992285,-673.75,0.00025479,3]
[329397020,1718317992309,-500.0,0.00025479,3]
[329397021,1718317992323,-1724.13,0.00025479,3]
[329397022,1718317992334,-2885.38,0.00025479,3]
[329397023,1718317992348,-500.0,0.00025479,3]
[329397024,1718317992362,-1491.12,0.00025479,3]
[329397025,1718317992382,-500.0,0.00025479,3]
[329397026,1718317992400,-500.0,0.00025479,3]
[329397027,1718317992416,-500.0,0.00025479,3]
[329397028,1718317992434,-500.0,0.00025479,3]
[329397029,1718317992452,-500.0,0.00025479,3]
[329397030,1718317992473,-2337.46,0.00025479,3]
[329397031,1718317992493,-500.0,0.00025479,3]
[329397032,1718317992508,-765.63,0.00025479,3]
[329397033,1718317992548,-922.52,0.00025479,3]
[329397034,1718317992616,-500.0,0.00025479,3]
[329397035,1718317992628,-500.0,0.00025479,3]
[329397036,1718317992640,-500.0,0.00025479,3]
[329397037,1718317992664,-24382.32,0.00025479,3]
[329397038,1718317992690,-965.22,0.00025479,3]
[329397039,1718317992707,-3318.36,0.00025479,3]
[329397040,1718317992722,-1458.83,0.00025479,3]
[329397041,1718317992794,-1978.36,0.00025479,3]
[329397042,1718317992827,-2647.12,0.00025479,3]
[329397043,1718317992843,-500.0,0.00025479,3]
[329397044,1718317992871,-500.0,0.00025479,3]
[329397045,1718317992889,-500.0,0.00025479,3]
[329397046,1718317992947,-500.0,0.00025479,3]
[329397047,1718317992974,-2164.24,0.00025479,3]
[329397048,1718317992988,-1243.96,0.00025479,3]
[329397049,1718317992999,-500.0,0.00025479,3]
[329397050,1718317993017,-500.0,0.00025479,3]
[329397051,1718317993030,-3628.12,0.00025479,3]
[329397052,1718317993042,-2601.86,0.00025479,3]
[329397053,1718317993058,-747.31,0.00025479,3]
[329397054,1718317993079,-500.0,0.00025479,3]
[329397055,1718317993108,-500.0,0.00025479,3]
[329397056,1718317993128,-500.0,0.00025479,3]
[329397057,1718317993139,-446.27426602,0.00025479,3]
[329397058,1718317993151,-500.0,0.00025479,3]
[329397059,1718317993165,-500.0,0.00025479,3]
[329397060,1718317993179,-509.96480728,0.00025479,3]
[329397061,1718317993192,-816.94,0.00025479,3]
[329397062,1718317993229,-1575.67,0.00025479,3]
[329397063,1718317993242,-2074.76,0.00025479,3]
[329397064,1718317993255,-500.0,0.00025479,3]
[329397065,1718317993443,-500.0,0.00025479,3]
[329397066,1718317993456,-2391.6,0.00025479,3]
[329397067,1718317993497,-6428.27,0.00025479,3]
[329397068,1718317993516,-523.51646998,0.00025479,3]
[329397069,1718317993540,-500.0,0.00025479,3]
[329397070,1718317993551,-500.0,0.00025479,3]
[329397071,1718317993565,-500.0,0.00025479,3]
[329397072,1718317993588,-2407.08,0.00025479,3]
[329397073,1718317993602,-603.63057998,0.00025479,3]
[329397074,1718317993616,-500.0,0.00025479,3]
[329397075,1718317993637,-500.0,0.00025479,3]
[329397076,1718317993654,-510.08616898,0.00025479,3]
[329397077,1718317993666,-1745.74,0.00025479,3]
[329397078,1718317993681,-612.2267733,0.00025479,3]
[329397079,1718317993711,-21434.9,0.00025479,3]
[329397080,1718317993726,-691.98,0.00025479,3]
[329397081,1718317993761,-524.71879255,0.00025479,3]
[329397082,1718317993778,-500.0,0.00025479,3]
[329397083,1718317993791,-6103.08,0.00025479,3]
[329397084,1718317993827,-1032.0,0.00025479,3]
[329397085,1718317993852,-2869.14,0.00025479,3]
[329397086,1718317993865,-1149.23,0.00025479,3]
[329397087,1718317993884,-500.0,0.00025479,3]
[329397088,1718317993896,-915.4,0.00025479,3]
[329397089,1718317993907,-516.19155847,0.00025479,3]
[329397090,1718317993919,-1375.99,0.00025479,3]
[329397091,1718317993931,-620.38340419,0.00025479,3]
[329397092,1718317993945,-3661.1,0.00025479,3]
[329397093,1718317993961,-530.64,0.00025479,3]
[329397094,1718317993988,-991.55,0.00025479,3]
[329397095,1718317994005,-500.0,0.00025479,3]
[329397096,1718317994030,-5226.34,0.00025479,3]
[329397097,1718317994072,-5356.85,0.00025479,3]
[329397098,1718317994090,-642.12,0.00025479,3]
[329397099,1718317994109,-524.1401069,0.00025479,3]
[329397100,1718317994125,-500.0,0.00025479,3]
[329397101,1718317994165,-500.0,0.00025479,3]
[329397102,1718317994206,-500.0,0.00025479,3]
[329397103,1718317994222,-500.0,0.00025479,3]
[329397104,1718317994242,-500.0,0.00025479,3]
[329397105,1718317994259,-500.0,0.00025479,3]
[329397106,1718317994277,-500.0,0.00025479,3]
[329397107,1718317994289,-294.95937638,0.00025479,3]
[329397108,1718317994302,-500.0,0.00025479,3]
[329397109,1718317994317,-500.0,0.00025479,3]
[329397110,1718317994340,-2021.79,0.00025479,3]
[329397111,1718317994360,-594.9,0.00025479,3]
[329397112,1718317994373,-770.45,0.00025479,3]
[329397113,1718317994388,-1007.16,0.00025479,3]
[329397114,1718317994444,-506.60395963,0.00025479,3]
[329397115,1718317994468,-500.0,0.00025479,3]
[329397116,1718317994479,-500.0,0.00025479,3]
[329397117,1718317994516,-2056.3,0.00025479,3]
[329397118,1718317994528,-1603.5,0.00025479,3]
[329397119,1718317994539,-525.41,0.00025479,3]
[329397120,1718317994550,-889.34,0.00025479,3]
[329397121,1718317994570,-500.0,0.00025479,3]
[329397122,1718317994583,-500.0,0.00025479,3]
[329397123,1718317994596,-500.0,0.00025479,3]
[329397124,1718317994608,-500.0,0.00025479,3]
[329397125,1718317994624,-500.0,0.00025479,3]
[329397126,1718317994641,-1476.49,0.00025479,3]
[329397127,1718317994662,-644.87983784,0.00025479,3]
[329397128,1718317994677,-500.0,0.00025479,3]
[329397129,1718317994717,-500.0,0.00025479,3]
[329397130,1718317994728,-500.0,0.00025479,3]
[329397131,1718317994740,-500.0,0.00025479,3]
[329397132,1718317994751,-3621.26,0.00025479,3]
[329397133,1718317994768,-1642.42,0.00025479,3]
[329397134,1718317994779,-500.0,0.00025479,3]
[329397135,1718317994808,-500.0,0.00025479,3]
[329397136,1718317994825,-719.93,0.00025479,3]
[329397137,1718317994845,-1966.27,0.00025479,3]
[329397138,1718317994857,-1173.79,0.00025479,3]
[329397139,1718317994868,-797.31,0.00025479,3]
[329397140,1718317994879,-2586.91,0.00025479,3]
[329397141,1718317994908,-791.95,0.00025479,3]
[329397142,1718317994929,-500.0,0.00025479,3]
[329397143,1718317994953,-500.0,0.00025479,3]
[329397144,1718317994972,-500.0,0.00025479,3]
[329397145,1718317995000,-500.0,0.00025479,3]
[329397146,1718317995031,-500.0,0.00025479,3]
[329397147,1718317995054,-593.7,0.00025479,3]
[329397148,1718317995065,-500.0,0.00025479,3]
[329397149,1718317995078,-500.0,0.00025479,3]
[329397150,1718317995091,-5119.33,0.00025479,3]
[329397151,1718317995102,-500.0,0.00025479,3]
[329397152,1718317995119,-500.0,0.00025479,3]
[329397153,1718317995135,-500.0,0.00025479,3]
[329397154,1718317995150,-500.0,0.00025479,3]
[329397155,1718317995178,-500.0,0.00025479,3]
[329397156,1718317995209,-646.88,0.00025479,3]
[329397157,1718317995238,-500.0,0.00025479,3]
[329397158,1718317995280,-500.0,0.00025479,3]
[329397159,1718317995292,-500.0,0.00025479,3]
[329397160,1718317995307,-500.0,0.00025479,3]
[329397161,1718317995340,-500.0,0.00025479,3]
[329397162,1718317995367,-1705.27,0.00025479,3]
[329397163,1718317995389,-926.9,0.00025479,3]
[329397164,1718317995402,-966.46,0.00025479,3]
[329397165,1718317995416,-500.0,0.00025479,3]
[329397166,1718317995430,-994.62,0.00025479,3]
[329397167,1718317995450,-500.0,0.00025479,3]
[329397168,1718317995466,-4732.1,0.00025479,3]
[329397169,1718317995492,-2060.91,0.00025479,3]
[329397170,1718317995506,-1582.8,0.00025479,3]
[329397171,1718317995536,-500.0,0.00025479,3]
[329397172,1718317995549,-505.08703106,0.00025479,3]
[329397173,1718317995561,-302.19677745,0.00025479,3]
[329397174,1718317995575,-500.0,0.00025479,3]
[329397175,1718317995592,-500.0,0.00025479,3]
[329397176,1718317995617,-524.55,0.00025479,3]
[329397177,1718317995634,-500.0,0.00025479,3]
[329397178,1718317995677,-175.911801,0.00025479,3]
[329397179,1718317995694,-656.22,0.00025479,3]
[329397180,1718317995725,-500.0,0.00025479,3]
[329397181,1718317995750,-500.0,0.00025479,3]
[329397182,1718317995761,-2381.31,0.00025479,3]
[329397183,1718317995772,-790.25,0.00025479,3]
[329397184,1718317995784,-500.0,0.00025479,3]
[329397185,1718317995812,-500.0,0.00025479,3]
[329397186,1718317995836,-1620.46,0.000256,2]
[329397187,1718317995854,-204.0,0.0002568,2]
[329397188,1718317995873,-151.0,0.00025708,4]
[329397189,1718317995894,-500.0,0.00025753,3]
[329397190,1718317995906,-500.0,0.00025753,3]
[329397191,1718317995924,-500.0,0.00025753,3]
[329397192,1718317995941,-500.0,0.00025753,3]
[329397193,1718317995957,-500.0,0.00025753,3]
[329397194,1718317995971,-500.0,0.00025753,3]
[329397195,1718317995981,-500.0,0.00025753,3]
[329397196,1718317995992,-500.0,0.00025753,3]
[329397197,1718317996003,-500.0,0.00025753,3]
[329397198,1718317996016,-500.0,0.00025753,3]
[329397199,1718317996034,-531.75163904,0.00025753,3]
[329397200,1718317996057,-525.8,0.00025753,3]
[329397201,1718317996067,-500.0,0.00025753,3]
[329397202,1718317996085,-500.0,0.00025753,3]
[329397203,1718317996102,-500.0,0.00025753,3]
[329397204,1718317996114,-500.0,0.00025753,3]
[329397205,1718317996131,-500.0,0.00025753,3]
[329397206,1718317996152,-500.0,0.00025753,3]
[329397207,1718317996165,-500.0,0.00025753,3]
[329397208,1718317996177,-500.0,0.00025753,3]
[329397209,1718317996195,-500.0,0.00025753,3]
[329397210,1718317996217,-500.0,0.00025753,3]
[329397211,1718317996228,-500.0,0.00025753,3]
[329397212,1718317996242,-190.96924332,0.00025753,3]
[329397213,1718317996254,-500.0,0.00025753,3]
[329397214,1718317996267,-550.62,0.00025753,3]
[329397215,1718317996304,-500.0,0.00025753,3]
[329397216,1718317996316,-500.0,0.00025753,3]
[329397217,1718317996332,-500.0,0.00025753,3]
[329397218,1718317996348,-643.63951311,0.00025753,3]
[329397219,1718317996359,-500.0,0.00025753,3]
[329397220,1718317996370,-500.0,0.00025753,3]
[329397221,1718317996383,-500.0,0.00025753,3]
[329397222,1718317996399,-500.0,0.00025753,3]
[329397223,1718317996410,-500.0,0.00025753,3]
[329397224,1718317996422,-500.0,0.00025753,3]
[329397225,1718317996436,-500.0,0.00025753,3]
[329397226,1718317996446,-550.02,0.00025753,3]
[329397227,1718317996461,-500.0,0.00025753,3]
[329397228,1718317996475,-500.0,0.00025753,3]
[329397229,1718317996488,-500.0,0.00025753,3]
[329397230,1718317996507,-500.0,0.00025753,3]
[329397231,1718317996522,-500.0,0.00025753,3]
[329397232,1718317996542,-500.0,0.00025753,3]
[329397233,1718317996554,-500.0,0.00025753,3]
[329397234,1718317996576,-500.0,0.00025753,3]
[329397235,1718317996587,-413.58060591,0.00025753,3]
[329397236,1718317996601,-500.0,0.00025753,3]
[329397237,1718317996616,-500.0,0.00025753,3]
[329397238,1718317996641,-500.0,0.00025753,3]
[329397239,1718317996653,-500.0,0.00025753,3]
[329397240,1718317996663,-500.0,0.00025753,3]
[329397241,1718317996675,-500.0,0.00025753,3]
[329397242,1718317996688,-500.0,0.00025753,3]
[329397243,1718317996699,-500.0,0.00025753,3]
[329397244,1718317996716,-500.0,0.00025753,3]
[329397245,1718317996744,-500.0,0.00025753,3]
[329397246,1718317996764,-500.0,0.00025753,3]
[329397247,1718317996775,-500.0,0.00025753,3]
[329397248,1718317996786,-500.0,0.00025753,3]
[329397249,1718317996825,-500.0,0.00025753,3]
[329397250,1718317996836,-516.68947549,0.00025753,3]
[329397251,1718317996854,-225.61286402,0.00025753,3]
[329397252,1718317996866,-500.0,0.00025753,3]
[329397253,1718317996877,-500.0,0.00025753,3]
[329397254,1718317996904,-500.0,0.00025753,3]
[329397255,1718317996935,-500.0,0.00025753,3]
[329397256,1718317996946,-500.0,0.00025753,3]
[329397257,1718317996965,-521.26408642,0.00025753,3]
[329397258,1718317996975,-500.0,0.00025753,3]
[329397259,1718317996996,-500.0,0.00025753,3]
[329397260,1718317997011,-500.0,0.00025753,3]
[329397261,1718317997032,-500.0,0.00025753,3]
[329397262,1718317997043,-945.43,0.00025753,3]
[329397263,1718317997068,-500.0,0.00025753,3]
[329397264,1718317997079,-500.0,0.00025753,3]
[329397265,1718317997095,-500.0,0.00025753,3]
[329397266,1718317997120,-500.0,0.00025753,3]
[329397267,1718317997151,-500.0,0.00025753,3]
[329397268,1718317997163,-500.0,0.00025753,3]
[329397269,1718317997187,-500.0,0.00025753,3]
[329397270,1718317997214,-500.0,0.00025753,3]
[329397271,1718317997225,-174.89810071,0.00025753,3]
[329397272,1718317997240,-500.0,0.00025753,3]
[329397273,1718317997254,-500.0,0.00025753,3]